{"text_format":"2","workbook":"xlsx","n_sheets":6,"sheets":["合计","人事服务平台建设","社保服务","表1-实施人员要求","表2-系统维护服务要求","表3-社保服务要求"],"not_rendered":{"charts":0,"images":0,"macros":0,"external_links":0,"defined_names":0,"comments":0,"pivot_tables":0},"unopened":[],"bounds":{"document_bytes":16777216,"sheet_cells":100000,"run_cost":"one","rows_first":2000,"rows_last":500,"rows_between":2000,"halvings":0,"cell_chars":16384,"cell_head_chars":4096},"cells_cut":0,"cells_raw":0,"read":"whole","date_system":"1900"}

{"sheet":"合计","index":0,"n_rows":11,"n_cols":6,"rows_kept":11,"cut":false,"hidden":false,"merged":[[0,0,0,6],[2,5,2,6],[3,5,3,6],[4,5,4,6],[5,0,5,1],[5,5,5,6],[10,3,10,4],[6,0,8,6]]}
["华润万家2025年人力资源共享平台-人事服务及社保服务共享建设项目报价表-汇总"]
[]
["序号","报价项","不含税金额","税率","含税金额","备注"]
[1,"人事服务平台建设",{"$f":"人事服务平台建设!C27","v":0},0.06,{"$f":"C4*(1+D4)","v":0},"/"]
[2,"社保服务",{"$f":"社保服务!H6","v":0},0.06,{"$f":"C5*(1+D5)","v":0},"按5年纳入比价"]
["汇总",null,{"$f":"C4+C5*5","v":0},0.06,{"$f":"E4+E5*5","v":0},"投标函请按此行汇总价填写"]
["说明：\n1）此页为汇总页，公式自动算出，无需填写；\n2）本项目最高限价为不含税438.75万元。"]
[]
[]
[]
[null,null,null,"投标单位（盖章）："]

{"sheet":"人事服务平台建设","index":1,"n_rows":45,"n_cols":9,"rows_kept":45,"cut":false,"hidden":false,"merged":[[0,0,0,8],[25,0,25,1],[25,2,25,4],[25,5,25,6],[25,7,25,8],[26,0,26,1],[26,2,26,4],[26,6,26,7],[27,0,27,1],[27,2,27,4],[27,6,27,7],[28,0,28,8],[29,0,29,7],[30,0,30,6],[41,0,41,4],[44,7,44,8],[2,0,5,0],[6,0,12,0],[13,0,19,0],[20,0,24,0],[2,1,5,1],[6,1,12,1],[13,1,19,1],[20,1,24,1],[2,4,24,4]]}
["1、人事服务平台实施报价（含一年免费维护）"]
["序号","实施阶段","角色","资源等级","最低标准人天工作量","人天工作量","人天单价\n（不含税）","金额\n（不含税）","拟安排人员名称"]
[1,"设计","项目经理","高级人员",1057,null,null,{"$f":"F3*G3","v":0}]
[null,null,"产品负责人","高级人员",null,null,null,{"$f":"F4*G4","v":0}]
[null,null,"产品人员","中级人员",null,null,null,0]
[null,null,"开发人员","高级人员",null,null,null,0]
[2,"开发","项目经理","高级人员",null,null,null,0]
[null,null,"产品负责人","高级人员",null,null,null,0]
[null,null,"产品人员","中级人员",null,null,null,0]
[null,null,"技术负责人","高级人员",null,null,null,0]
[null,null,"开发负责人","高级人员",null,null,null,0]
[null,null,"开发人员","高级人员",null,null,null,0]
[null,null,"开发人员","中级人员",null,null,null,0]
[3,"测试","项目经理","高级人员",null,null,null,0]
[null,null,"产品负责人","高级人员",null,null,null,0]
[null,null,"产品人员","中级人员",null,null,null,0]
[null,null,"开发负责人","高级人员",null,null,null,0]
[null,null,"开发人员","中级人员",null,null,null,0]
[null,null,"测试负责人","高级人员",null,null,null,0]
[null,null,"测试人员","中级人员",null,null,null,0]
[4,"上线","项目经理","高级人员",null,null,null,0]
[null,null,"产品负责人","高级人员",null,null,null,0]
[null,null,"产品人员","中级人员",null,null,null,0]
[null,null,"开发负责人","高级人员",null,null,null,0]
[null,null,"开发人员","中级人员",null,null,null,0]
["项目计划开始、结束时间",{"$nulls":4},"项目成员人数"]
["合计金额（不含税）",null,{"$f":"SUM(H3:H25)","v":0},null,null,"税率","人天工作量合计",null,{"$f":"SUM(F3:F25)","v":0}]
["合计金额（含税）",null,{"$f":"C27*(1+F28)","v":0},null,null,0.06,"平均人天单价（不含税）",null,{"$f":"C27/I27","v":{"$error":"#DIV/0!"}}]
["说明：\n1）角色、资源等级不允许调整，不允许增加、删除行数；\n2）提交的项目经理与核心成员必须全程参与项目实施；如果项目成员需要更换至少提前一个月提出，并征得甲方项目总监书面同意方可更换；实施人员要求，详见《表1-实施人员要求》；\n3）不接受优惠、赠送、折扣等形式的报价，如有，将会按折扣前平均人天单价折算为人天工作量，并扣减投标人提报的人天工作量；\n4）人天工作量合计不得低于\"最低标准人天工作量\"（如有扣减人天工作量的，按扣减后的人天工作量计算），若低于，评标委员会有权否决其投标。"]
[]
["2、后续系统改造人天单价报价"]
["等级","角色","后续系统改造的人天单价限价（不含税）","投标人自行填报下浮率","后续系统改造的人天单价（不含税）"]
["高级","项目经理",3000,null,{"$f":"C33*(1-D33)","v":3000}]
["高级","技术负责人",3000,null,3000]
["高级","产品负责人",3000,null,3000]
["高级","开发负责人",3000,null,3000]
["高级","测试负责人",3000,null,3000]
["高级","开发人员",3000,null,3000]
["中级","开发人员",2700,null,2700]
["中级","产品人员",2700,null,2700]
["中级","测试人员",2700,null,2700]
["说明：\n后续系统改造的人天单价设置最高限价，投标人请自行填报下浮率，根据所得人天单价（单元格E32-E41）签署五年人天服务框架合同，后续根据实际需要下订单采购。若供应商所报下浮率为负，则其投标将被否决。\n"]
[]
[]
[{"$nulls":7},"投标单位（盖章）："]

{"sheet":"社保服务","index":2,"n_rows":14,"n_cols":8,"rows_kept":14,"cut":false,"hidden":false,"merged":[[0,0,0,7],[1,3,1,4],[1,5,1,6],[5,0,5,6],[6,0,6,6],[7,0,7,6],[8,0,8,7],[1,0,2,0],[1,1,2,1],[3,1,4,1],[1,2,2,2],[1,7,2,7]]}
["社保服务"]
["序号","服务范围说明","服务费用说明","单价（不含税）",null,"模拟量",null,"小计/年\n（不含税）"]
[null,null,null,"单价","单位","数量","单位"]
[1,"1、满足50000员工、涵盖15个主要城市的社保业务线上化、自动化处理。\n2、快速响应全国各城市社保政策调整，获取社保缴费政策最新信息。快速适配全国各城市社保网站更新升级，实现自动化完成社保申报、缴费等各项业务工作。\n3、持续适配社保入税政策的调整，系统支持自动升级适配与社保系统的直连对接。","政策维护，员工社保公积金档案，测算与供应商账单对比等",null,"元/人/年",50000,"人",{"$f":"D4*F4","v":0}]
[2,null,"社保RPA机器人（每城市）",null,"元/城市/年","20","城市",{"$f":"D5*F5","v":0}]
["合计金额/年（不含税）",{"$nulls":6},{"$f":"SUM(H4:H5)","v":0}]
["税率",{"$nulls":6},0.06]
["合计金额/年（含税）",{"$nulls":6},{"$f":"H6*(1+H7)","v":0}]
["说明：\n1）请填报黄色区域单价列，自动保留2位小数；其他部分不得修改，否则可能会被否决投标；\n2）服务内容详见《表3-社保服务要求》，需满足招标文件附件《华润万家人力资源共享平台项目（社保平台服务）说明》的要求；\n3）签订五年框架合同，此报价表中数量不作为签约数，实际以下单为准。"]
[]
[]
[]
[]
[{"$nulls":5},"投标单位（盖章）："]

{"sheet":"表1-实施人员要求","index":3,"n_rows":10,"n_cols":3,"rows_kept":10,"cut":false,"hidden":false,"merged":[[1,0,6,0],[7,0,9,0]]}
["角色","职责","要求"]
["高级人员","项目经理：\n1.参与方案设计；\n2.负责按照项目计划创建、管理和交付任务和时间表\n3.负责协调资源\n4.负责沟通及问题的解决\n5.保证项目按计划完成","1、有大型HR领域人事服务共享建设的项目实施经验，主导过2个及以上HR领域人事服务共享建设项目实施;\n2、具有5年及以上项目管理经验，沟通协调能力强，能保障项目保质保量的顺利实施进行"]
[null,"技术负责人：\n1、负责在整个项目中对技术活动进行领导和协调\n2、确定解决方案的系统架构设计和技术方案\n3、为高性能解决方案设计以及集成方法和批量开发制定指导方针。","1、具备6年及以上的系统架构设计和产品研发经验，熟悉主流技术体系，具有扎实的技术背景。\n2、有2个及以上HR领域内人事服务共享建设系统产品架构设计与实施经验，并负责核心技术内容的设计工作。\n3、具备丰富的大中型开发项目的总体规划、方案设计及技术队伍管理经验\n4、具有资深的技术开发、平台架构与设计能力，熟悉负载均衡原理，熟悉集群技术实现，熟悉分布式架构\n5，具备基于DDD微服务拆分与设计能力，掌握统一语言概念，以及常见的建模方法（四色建模法，事件风暴，用例分析等）来拆分限界上下文和识别聚合，聚合根等领域模型，熟悉DDD代码四层架构以及层级之间的各个服务调用逻辑和代码开发规范，具备将领域模型映射到代码和数据库表的数据模型的能力，具备实际DDD相关开发经验，和业务建模经验,，具备以DDD为基础微服务拆分与设计能力；"]
[null,"产品负责人：\n1、与项目经理和架构师一同执行获得批准的产品方案设计\n2、负责依据需求设计产品功能、交互逻辑，主导产品设计工作，参与开发、测试、上线阶段的业务方案、切换方案等技术支持。\n3、负责产品、系统设置、质量审核支持、为项目提供技术支持。","1、具备5年及以上HR领域系统产品、项目、方案设计工作经验，熟悉HR领域人事服务共享建设业务模式、运作模式、管理模式等\n2、具备1个以上包含人事服务共享建设的HR产品或项目的功能设计与实施经验，能够保障产品设计贴合业务需求，产品设计符合万家的设计要求\n3、具有统筹产品设计的能力，对于HR的产品需求有较深的理解"]
[null,"开发负责人：\n1、参与程序开发，按照架构师与产品负责人提供的设计方案进行程序开发\n2、负责日常程序BUG修复。","1、具备5年开发技术领域经验\n2、具有统筹开发计划的能力，能够保障产品开发质量和关键性能指标达到要求，并做好知识转移\n3、了解统一语言的概念，熟悉代码中充血模型和贫血模型的区别，以及对防腐设计的理解，能够区分应用服务和领域服务，以及掌握DDD四层架构的相关开发规范；"]
[null,"测试负责人：\n1、参与方案与技术设计，制定测试方案与计划\n2、负责软件SIT/UAT测试，为项目提供技术支持。","1、具备5年以上信息系统实施、开发测试经验\n2、熟悉HR领域人事服务共享建设的核心业务，能有效评审测试案例，保证业务测试覆盖\n3、有独立能力完成复杂项目的测试规划。熟悉LoadRunner、ApacheJMeter等压力测试软件，能对自动化测试平台进行规划设计，有参与过自动化工具的分析选型等相关工作经验；"]
[null,"开发人员：\n1、参与程序开发\n2、在开发负责人的指导下，按照技术负责与产品负责人提供的设计方案进行程序开发\n3、负责日常程序BUG修复","1、具备5年开发技术领域经验\n2、具有独立开发核心功能的能力，能够保障产品开发质量和关键性能指标达到要求，并做好知识转移"]
["中级人员","产品人员：\n1、参与方案与技术设计\n2、制定测试方案与计划\n3、负责软件SIT/UAT测试，为项目提供技术支持","3年及以上相关产品实施和行业经验"]
[null,"开发人员：\n1、在开发负责人的指导下，按照技术负责与产品负责人提供的设计方案进行程序开发\n2、负责日常程序BUG修复。","3年及以上相关产品开发和行业经验"]
[null,"测试人员：\n1、在测试负责人指导下，根据测试方案与计划，参与非关键功能模块测试，记录测试发现问题。","3年及以上相关产品测试和行业经验"]

{"sheet":"表2-系统维护服务要求","index":4,"n_rows":1,"n_cols":1,"rows_kept":1,"cut":false,"hidden":false,"merged":[]}
["运维服务要求：\n1. 项目验收后，乙方需要提供一年免费维护服务，其中，第1个月的全程现场支持，并将现场运维工作移交给万家。完成运维工作移交后，乙方提供7*24小时热线电话服务，确保线路通畅，可采用电话、邮件、远程登入、现场支持方式，实际过程中采用何种服务方式由甲乙双方协商确定，如甲方根据故障情况提出现场服务要求时，乙方必须安排技术人员到达故障现场服务；\n2. 原有系统的升级改造，后续年度不增加维护费；\n3. 一年免费维护期结束后，如万家提出后续维护服务的需求，实施商不得拒绝，且后续维护服务费（含许可续期费，如有）双方应在本合同中约定收费规则，维护服务合同双方另行签订，预计本系统使用年限为5年以上；\n4．运维服务包括但不限于以下内容：\n 程序错误修改、程序故障处理、程序性能优化、系统检查服务、功能咨询服务；\n 应用故障服务：包含应用系统程序使用故障处理和恢复，应用系统程序引起的数据错误\n处理和恢复，应用系统灾难性数据错误处理和恢复协助，程序错误修复和版本自动更新，应用脚本更新和下发，应用管理程序更新和下发，应用补丁程序的更新和下发；\n 系统检查服务：包含对应用系统的如下检查：运行环境检查，版本和配置检查，模块权限配置检查，运行日志和管理维护记录检查，数据库容量、权限、表索引、表空间检查，数据完整性和维护记录检查；\n 培训服务：包含应用软件的安装培训，数据和应用备份培训，应用软件的卸载、迁移和升级培训，应用系统管理和数据维护培训；\n 性能分析和调优服务：包含：评估应用性能、容量和瓶颈，提出现状分析和优化配置建议；实施应用性能调优；\n 技术支持与咨询服务：包括软件bug修改（不含新增需求变更）、解答软件系统的相关业务和技术问题；\n 服务期间，出现软件不能正常运行，严重影响甲方及甲方关联方工作的故障，乙方须在4个小时内提供解决方案，一般故障与技术咨询须在24小时内提供解决方案；\n 提供（针对为甲方提供运维服务）乙方所配置的组织架构、运维流程和人员职责分工，指定运维服务固定对接人员；\n 遵守华润万家重大节假日值班要求，除了7*24小时热线电话外，同时提供7*24小时紧急联系人电话，并确保电话畅通；\n 按月度提供运维服务计划，按季度提供报障处理清单。"]

{"sheet":"表3-社保服务要求","index":5,"n_rows":11,"n_cols":3,"rows_kept":11,"cut":false,"hidden":false,"merged":[[0,0,9,0],[0,1,9,1],[10,0,11,2]]}
["社保服务","社保/公积金业务线上化","提供满足50000员工、涵盖15个主要城市（以实际上线城市为准）的社自动化、智能化、远程化的社保业务处理服务，包括但不限于以下服务。"]
[null,null,"1. 快速响应全国各城市社保政策调整，获取社保缴费政策最新信息。快速适配全国各城市社保网站更新升级，实现自动化完成社保申报、缴费等各项业务工作"]
[null,null,"2. 持续适配社保入税政策的调整，系统支持自动升级适配与社保系统的直连对接。"]
[null,null,"3. 员工参、停保申报：对接PS系统，实现人员异动联动，自动触发员工参、停保流程，线上完成员工参、停保申报。"]
[null,null,"4. 缴费基数申报：连通PS系统的人员缴费工资，线上完成缴费工资申报以及缴费申报记录查询。"]
[null,null,"5. 社保薪酬联动：系统支持自动获取员工参保的社保数据并同步PS系统，满足算薪及核算要求。"]
[null,null,"6. 社保申报：支持一键申报、查询多个主体的社保数据。支持申报记录、申报进度实时查询。"]
[null,null,"7. 缴费通知单：支持批量查询并下载多个主体/税局的缴费通知单。"]
[null,null,"8. 社保缴费：支持多个主体批量缴费。支持缴费记录、缴费进度实时查询。"]
[null,null,"9. 缴费证明：支持多主体社保缴费证明的查询及批量打印。"]
["覆盖城市：南京、天津 、深圳、西安、广州、南昌、苏州、杭州、上海 、无锡、珠海、兰州、宁波、沈阳、慈溪"]